lending/lending_fUSD_20240110
["ID","MTS","AMOUNT","RATE_DAILY","PERIOD"]
[311103691,1704906642608,-1251.0,0.00030163,2]
[311103694,1704906642617,-724.018,0.00030163,2]
[311103697,1704906642626,-1138.0,0.00030163,2]
[311103701,1704906642635,-603.218,0.00030163,2]
[311103704,1704906642644,-1930.0,0.00030163,2]
[311103707,1704906642653,-204.648,0.00030163,2]
[311103711,1704906642663,-373.279,0.00030163,2]
[311103713,1704906642672,-870.0,0.00030163,2]
[311103716,1704906642681,-184.317,0.00030163,2]
[311103719,1704906642690,-424.0,0.00030163,2]
[311103720,1704906642700,-19668.0,0.00030174,2]
[311103723,1704906642709,-4166.0,0.00030174,2]
[311103726,1704906642718,-2900.0,0.00030174,2]
[311103729,1704906642727,-31241.516,0.00030174,2]
[311103733,1704906642736,-2269.0,0.00030174,2]
[311103735,1704906642745,-243.229,0.00030174,2]
[311103738,1704906642754,-1000.0,0.000302,2]
[311103741,1704906642763,-8750.0,0.00030275,2]
[311103745,1704906642772,-735.34827809,0.00030306,2]
[311103747,1704906642781,-8750.0,0.00030469,2]
[311103749,1704906642790,-446.45,0.00030662,2]
[311103751,1704906642800,-8750.0,0.00030663,2]
[311103753,1704906642809,-8569.7,0.00030856,2]
[311103755,1704906642818,-153.84162104,0.000309,2]
[311103757,1704906642827,-153.84162083,0.000309,2]
[311103759,1704906642836,-153.84162083,0.000309,2]
[311103761,1704906642845,-153.84162083,0.000309,2]
[311103763,1704906642854,-153.84162083,0.000309,2]
[311103767,1704906642863,-153.84162083,0.000309,2]
[311103770,1704906642872,-153.84162083,0.000309,2]
[311103773,1704906642880,-153.84162083,0.000309,2]
[311103775,1704906642889,-153.84162083,0.000309,2]
[311103777,1704906642898,-153.84162083,0.000309,2]
[311103779,1704906642908,-153.84162083,0.000309,2]
[311103780,1704906642917,-153.84162083,0.000309,2]
[311103782,1704906642926,-153.84162083,0.000309,2]
[311103784,1704906642935,-153.84162083,0.000309,2]
[311103787,1704906642945,-153.84162083,0.000309,2]
[311103789,1704906642954,-153.84162083,0.000309,2]
[311103790,1704906642963,-153.84162083,0.000309,2]
[311103793,1704906642973,-944.0,0.00030937,2]
[311103795,1704906642982,-1195.509,0.00030937,2]
[311103797,1704906642991,-1846.0,0.00030937,2]
[311103799,1704906643000,-832.0,0.00030937,2]
[311103800,1704906643009,-500.0,0.00031,3]
[311103803,1704906643018,-7591.78593884,0.00031,2]
[311103805,1704906643027,-369.13398105,0.00031,2]
[311103807,1704906643036,-153.84,0.0003105,2]
[311103809,1704906643046,-1000.0,0.000312,2]
[311103811,1704906643055,-153.84162083,0.00031241,2]
[311103813,1704906643064,-423.24,0.00031257,2]
[311103815,1704906643073,-500.0,0.000315,2]
[311103816,1704906643082,-155.0,0.00031507,2]
[311103819,1704906643091,-446.45,0.0003164,2]
[311103821,1704906643100,-153.84162083,0.00031732,2]
[311103823,1704906643110,-245216.583685,0.000318,3]
[311103825,1704906643119,-153.84,0.00031963,2]
[311103827,1704906643128,-488.57293554,0.00032,4]
[311103829,1704906643138,-297.7683181,0.00032,4]
[311103831,1704906643147,-6043.81582693,0.00032,2]
[311103832,1704906643157,-1955.49102471,0.00032,2]
[311103835,1704906643166,-3000.0,0.00032,2]
[311103837,1704906643175,-3000.0,0.0003201,2]
[311103839,1704906643184,-3000.0,0.0003202,2]
[311103841,1704906643193,-3000.0,0.0003203,2]
[311103843,1704906643202,-3000.0,0.0003204,2]
[311103845,1704906643212,-3000.0,0.0003205,2]
[311103847,1704906643220,-3000.0,0.0003206,2]
[311103849,1704906643229,-3000.0,0.0003207,2]
[311103851,1704906643239,-3000.0,0.0003208,2]
[311103852,1704906643248,-3000.0,0.0003209,2]
[311103853,1704906643257,-605.239998,0.000321,2]
[311103854,1704906643266,-3000.0,0.000321,2]
[311103855,1704906643274,-3000.0,0.0003211,2]
[311103856,1704906643283,-3841.139845,0.0003212,2]
[311103857,1704906643292,-1000.0,0.000322,2]
[311103858,1704906643300,-153.84162083,0.00032222,2]
[311103859,1704906643310,-540.21016138,0.00032553,2]
[311103860,1704906643319,-3246.0,0.000326,2]
[311103861,1704906643327,-176.293836,0.000326,7]
[311103863,1704906643337,-151.0,0.000326,7]
[311103865,1704906643346,-151.0,0.000326,7]
[311103867,1704906643355,-203.530211,0.000326,7]
[311103869,1704906643364,-203.530211,0.000326,7]
[311103871,1704906643374,-151.0,0.000326,7]
[311103873,1704906643383,-151.0,0.000326,7]
[311103875,1704906643392,-179.255117,0.000326,7]
[311103878,1704906643401,-151.0,0.000326,7]
[311103879,1704906643411,-151.0,0.000326,7]
[311103881,1704906643420,-23856.0,0.000326,2]
[311103883,1704906643429,-151.0,0.000326,7]
[311103886,1704906643439,-151.0,0.000326,7]
[311103888,1704906643448,-151.0,0.000326,7]
[311103890,1704906643457,-151.0,0.000326,7]
[311103891,1704906643466,-175.900308,0.000326,7]
[311103893,1704906643476,-678.510908,0.000326,7]
[311103895,1704906643485,-678.510908,0.000326,7]
[311103898,1704906643496,-151.0,0.000326,7]
[311103900,1704906643505,-151.0,0.000326,7]
[311103902,1704906643514,-446.45,0.00032619,2]
[311103903,1704906643523,-153.84162083,0.00032713,2]
[311103905,1704906643532,-1000.0,0.00032776,2]
[311103907,1704906643541,-1000.0,0.00032799,2]
[311103910,1704906643551,-332343.75821915,0.00032875,2]
[311103911,1704906643560,-151.0,0.00032875,7]
[311103914,1704906643569,-151.0,0.00032875,7]
[311103915,1704906643578,-151.0,0.00032875,7]
[311103917,1704906643587,-151.0,0.00032875,7]
[311103919,1704906643596,-151.0,0.00032875,7]
[311103921,1704906643605,-151.0,0.00032875,7]
[311103923,1704906643614,-151.0,0.00032875,7]
[311103925,1704906643623,-151.0,0.00032875,7]
[311103928,1704906643632,-151.0,0.00032875,7]
[311103930,1704906643641,-250.856614,0.00032875,7]
[311103931,1704906643650,-156.142528,0.00032875,7]
[311103934,1704906643659,-168.904772,0.00032875,7]
[311103936,1704906643669,-168.904772,0.00032875,7]
[311103938,1704906643678,-270.0,0.00032876,7]
[311103939,1704906643687,-270.0,0.00032876,7]
[311103942,1704906643696,-549.49434105,0.00032876,7]
[311103944,1704906643705,-1000.0,0.00032876,2]
[311103946,1704906643715,-1000.0,0.00032876,2]
[311103947,1704906643726,-1000.0,0.00032876,2]
[311103949,1704906643735,-1000.0,0.00032876,2]
[311103951,1704906643744,-1000.0,0.00032876,2]
[311103953,1704906643752,-1000.0,0.00032876,2]
[311103955,1704906643762,-285.13151198,0.00032876,2]
[311103957,1704906643771,-153.84,0.00032877,2]
[311103959,1704906643780,-2952.29,0.00032877,2]
[311103961,1704906643789,-472.86,0.00032877,15]
[311103963,1704906643798,-155.0,0.00032877,2]
[311103965,1704906643807,-155.0,0.00033,4]
[311103967,1704906643816,-550.0,0.00033,3]
[311103969,1704906643825,-1234.0,0.00033163,2]
[311103971,1704906643834,-1251.0,0.00033163,2]
[311103973,1704906643843,-365.219,0.00033163,2]
[311103975,1704906643852,-1930.0,0.00033163,2]
[311103977,1704906643861,-11252.072,0.00033174,2]
[311103980,1704906643871,-2038.0,0.00033174,2]
[311103982,1704906643880,-2900.0,0.00033174,2]
[311103983,1704906643890,-1842.387,0.00033174,2]
[311103985,1704906643899,-1000.0,0.000332,2]
[311103987,1704906643908,-153.84162083,0.00033203,2]
[311103990,1704906643918,-371.20213499,0.00033213,2]
[311103992,1704906643927,-423.24,0.00033521,2]
[311103993,1704906643936,-446.45,0.00033597,2]
[311103995,1704906643946,-272.7358946,0.000336,4]
[311103997,1704906643955,-153.84162083,0.00033694,2]
[311103999,1704906643963,-4894.0,0.00033758,2]
[311104002,1704906643973,-153.84,0.0003379,2]
[311104004,1704906643981,-260.0,0.00033799,5]
[311104005,1704906643990,-944.0,0.00033937,2]
[311104007,1704906643999,-1000.0,0.00034,4]
[311104009,1704906644009,-801.97521111,0.00034,4]
[311104011,1704906644018,-155.0,0.00034,4]
[311104013,1704906644029,-349337.70622538,0.00034,2]
[311104015,1704906644039,-152.7097194,0.00034,4]
[311104017,1704906644048,-152.7097194,0.00034,6]
[311104020,1704906644061,-152.7097194,0.00034,6]
[311104022,1704906644075,-152.7097194,0.00034,2]
[311104025,1704906644088,-152.7097194,0.00034,4]
[311104027,1704906644100,-152.7097194,0.00034,6]
[311104029,1704906644112,-152.7097194,0.00034,5]
[311104031,1704906644123,-152.7097194,0.00034,5]
[311104033,1704906644133,-152.7097194,0.00034,3]
[311104035,1704906644144,-152.7097194,0.00034,2]
[311104038,1704906644157,-152.7097194,0.00034,2]
[311104040,1704906644168,-152.7097194,0.00034,5]
[311104042,1704906644180,-152.7097194,0.00034,3]
[311104045,1704906644192,-152.7097194,0.00034,4]
[311104047,1704906644204,-152.7097194,0.00034,5]
[311104049,1704906644217,-152.7097194,0.00034,4]
[311104051,1704906644228,-152.7097194,0.00034,5]
[311104053,1704906644240,-152.7097194,0.00034,3]
[311104055,1704906644251,-152.7097194,0.00034,3]
[311104056,1704906644260,-152.7097194,0.00034,2]
[311104058,1704906644271,-152.7097194,0.00034,5]
[311104060,1704906644282,-152.7097194,0.00034,6]
[311104062,1704906644293,-152.7097194,0.00034,2]
[311104064,1704906644304,-152.7097194,0.00034,2]
[311104066,1704906644315,-152.7097194,0.00034,3]
[311104068,1704906644326,-152.7097194,0.00034,5]
[311104069,1704906644337,-152.7097194,0.00034,6]
[311104071,1704906644348,-152.7097194,0.00034,2]
[311104073,1704906644360,-152.7097194,0.00034,4]
[311104075,1704906644372,-152.7097194,0.00034,3]
[311104077,1704906644383,-152.7097194,0.00034,2]
[311104079,1704906644396,-152.7097194,0.00034,4]
[311104081,1704906644407,-152.7097194,0.00034,6]
[311104083,1704906644422,-152.7097194,0.00034,2]
[311104085,1704906644434,-152.7097194,0.00034,2]
[311104087,1704906644446,-152.7097194,0.00034,3]
[311104089,1704906644460,-152.7097194,0.00034,6]
[311104090,1704906644472,-152.7097194,0.00034,2]
[311104092,1704906644485,-152.7097194,0.00034,6]
[311104094,1704906644497,-152.7097194,0.00034,5]
[311104096,1704906644510,-152.7097194,0.00034,4]
[311104098,1704906644522,-152.7097194,0.00034,5]
[311104100,1704906644535,-152.7097194,0.00034,2]
[311104102,1704906644546,-152.7097194,0.00034,3]
[311104104,1704906644558,-152.7097194,0.00034,3]
[311104106,1704906644570,-152.7097194,0.00034,5]
[311104108,1704906644582,-152.7097194,0.00034,5]
[311104110,1704906644594,-152.7097194,0.00034,4]
[311104112,1704906644608,-150.0,0.00034108,7]
[311104114,1704906644620,-171746.81839387,0.0003412,2]
[311104116,1704906644632,-153.84162083,0.00034185,2]
[311104117,1704906644646,-1000.0,0.000342,2]
[311104119,1704906644656,-169.14057872,0.00034247,2]
[311104121,1704906644666,-76867.40404744,0.000345,2]
[311104123,1704906644676,-7497.172512,0.0003452,2]
[311104125,1704906644688,-2680.930382,0.0003452,2]
[311104127,1704906644700,-5622.879384,0.0003452,2]
[311104129,1704906644712,-5821.95,0.00034521,2]
[311104131,1704906644725,-446.45,0.00034576,2]
[311104133,1704906644736,-770.87207534,0.00034618,4]
[311104135,1704906644748,-757.38163137,0.00034618,4]
[311104137,1704906644761,-155.0,0.00034619,4]
[311104139,1704906644773,-521.64077559,0.00034619,4]
[311104141,1704906644785,-697.8377048,0.00034619,4]
[311104143,1704906644797,-180.0,0.00034658,2]
[311104145,1704906644808,-153.84162083,0.00034675,2]
[311104147,1704906644818,-20289.62243159,0.000347,7]
[311104149,1704906644830,-165.088608,0.000347,7]
[311104151,1704906644841,-151.0,0.000347,7]
[311104153,1704906644852,-151.0,0.000347,7]
[311104154,1704906644864,-299.57964,0.000347,7]
[311104156,1704906644875,-151.0,0.000347,7]
[311104158,1704906644887,-151.0,0.000347,7]
[311104160,1704906644903,-678.510908,0.000347,7]
[311104162,1704906644914,-678.510908,0.000347,7]
[311104164,1704906644925,-151.0,0.000347,7]
[311104166,1704906644939,-151.0,0.000347,7]
[311104168,1704906644950,-153.84,0.00034703,2]
[311104170,1704906644961,-291.46,0.00034703,2]
[311104172,1704906644972,-151.0,0.00034794,7]
[311104174,1704906644982,-151.0,0.00034794,7]
[311104176,1704906644993,-203.530211,0.00034794,7]
[311104178,1704906645003,-203.530211,0.00034794,7]
[311104180,1704906645014,-151.0,0.00034794,7]
[311104182,1704906645025,-151.0,0.00034794,7]
[311104184,1704906645037,-151.0,0.00034794,7]
[311104186,1704906645048,-151.0,0.00034794,7]
[311104188,1704906645058,-151.0,0.00034794,7]
[311104190,1704906645069,-11245.758768,0.00034794,2]
[311104192,1704906645080,-4021.395573,0.00034794,2]
[311104194,1704906645090,-8434.319076,0.00034794,2]
[311104196,1704906645102,-99569.24251615,0.00034806,10]
[311104198,1704906645112,-1854.48408027,0.000349,2]
[311104200,1704906645123,-1854.48408026,0.000349,2]
[311104202,1704906645134,-1854.48408026,0.000349,2]
[311104204,1704906645150,-1854.48408026,0.000349,2]
[311104206,1704906645161,-1854.48408026,0.000349,2]
[311104207,1704906645172,-1854.48408026,0.000349,2]
[311104209,1704906645183,-1854.48408026,0.000349,2]
[311104211,1704906645195,-1854.48408026,0.000349,2]
[311104213,1704906645205,-500.0,0.00034903,2]
[311104215,1704906645217,-500.0,0.00034903,2]
[311104217,1704906645227,-500.0,0.00034903,2]
[311104219,1704906645238,-500.0,0.00034903,2]
[311104221,1704906645248,-500.0,0.00034903,2]
[311104223,1704906645259,-500.0,0.00034903,2]
[311104225,1704906645270,-500.0,0.00034903,2]
[311104227,1704906645281,-500.0,0.00034903,2]
[311104229,1704906645291,-500.0,0.00034903,2]
[311104231,1704906645302,-500.0,0.00034903,2]
[311104233,1704906645313,-500.0,0.00034903,2]
[311104235,1704906645325,-500.0,0.00034903,2]
[311104237,1704906645335,-500.0,0.00034903,2]
[311104239,1704906645346,-500.0,0.00034903,2]
[311104241,1704906645357,-500.0,0.00034903,2]
[311104243,1704906645369,-500.0,0.00034903,2]
[311104245,1704906645380,-500.0,0.00034903,2]
[311104247,1704906645396,-500.0,0.00034903,2]
[311104248,1704906645406,-500.0,0.00034903,2]
[311104249,1704906645420,-500.0,0.00034903,2]
[311104250,1704906645431,-500.0,0.00034903,2]
[311104251,1704906645442,-500.0,0.00034903,2]
[311104252,1704906645453,-500.0,0.00034903,2]
[311104253,1704906645464,-500.0,0.00034903,2]
[311104254,1704906645475,-500.0,0.00034903,2]
[311104255,1704906645486,-500.0,0.00034903,2]
[311104256,1704906645497,-500.0,0.00034903,2]
[311104257,1704906645507,-500.0,0.00034903,2]
[311104259,1704906645519,-500.0,0.00034903,2]
[311104261,1704906645529,-500.0,0.00034903,2]
[311104263,1704906645540,-500.0,0.00034903,2]
[311104265,1704906645550,-500.0,0.00034903,2]
[311104267,1704906645561,-500.0,0.00034903,2]
[311104270,1704906645571,-500.0,0.00034903,2]
[311104272,1704906645582,-500.0,0.00034903,2]
[311104274,1704906645593,-500.0,0.00034903,2]
[311104276,1704906645604,-500.0,0.00034903,2]
[311104278,1704906645614,-500.0,0.00034903,2]
[311104281,1704906645625,-500.0,0.00034903,2]
[311104283,1704906645635,-350.0,0.00034903,2]
[311104285,1704906645649,-500.0,0.00034903,2]
[311104287,1704906645659,-500.0,0.00034903,2]
[311104289,1704906645670,-500.0,0.00034903,2]
[311104291,1704906645680,-500.0,0.00034903,2]
[311104294,1704906645692,-500.0,0.00034903,2]
[311104296,1704906645702,-500.0,0.00034903,2]
[311104298,1704906645713,-500.0,0.00034903,2]
[311104300,1704906645724,-500.0,0.00034903,2]
[311104303,1704906645734,-500.0,0.00034903,2]
[311104306,1704906645746,-500.0,0.00034903,2]
[311104309,1704906645757,-16591.51266997,0.00034903,10]
[311104311,1704906645767,-44511.83172773,0.00034903,10]
[311104313,1704906645779,-11363.23354734,0.00034903,10]
[311104315,1704906645790,-14994.345025,0.00034931,2]
[311104317,1704906645801,-5361.860765,0.00034931,2]
[311104321,1704906645811,-11245.758768,0.00034931,2]
[311104323,1704906645822,-1731.88163256,0.0003499,2]
[311104325,1704906645833,-100000.0,0.00035,2]
[311104327,1704906645844,-2500.0,0.00035,2]
[311104330,1704906645854,-16417.45689362,0.00035,2]
[311104332,1704906645865,-397.09773994,0.00035,4]
[311104334,1704906645876,-5000.0,0.00035,2]
[311104336,1704906645887,-1248.74037955,0.00035,4]
[311104338,1704906645899,-156589.04283982,0.00035,2]
[311104340,1704906645908,-16495.5114499,0.00035,2]
[311104364,1704906645918,-155.0,0.00035,2]
[311104367,1704906646135,-707.01055253,0.00035,4]
[311104369,1704906646149,-55810.69217093,0.00035,4]
[311104371,1704906646158,-15711.71877726,0.00035,7]
[311104373,1704906646168,-150.0,0.00035,7]
[311104375,1704906646178,-448.73636838,0.00035,4]
[311104377,1704906646188,-205.73491777,0.00035,4]
[311104379,1704906646197,-600.0,0.00035,3]
[311104381,1704906646207,-3900.0,0.00035,7]
[311104383,1704906646217,-498409.68993348,0.00035,7]
[311104385,1704906646226,-930.28176601,0.00035,2]
[311104387,1704906646236,-1397.45141583,0.00035,7]
[311104389,1704906646245,-151.0,0.00035,7]
[311104391,1704906646254,-151.0,0.00035,7]
[311104393,1704906646263,-151.0,0.00035,7]
[311104395,1704906646272,-3000.0,0.00035,2]
[311104397,1704906646282,-155.93041915,0.00035,2]
[311104399,1704906646291,-155.93041915,0.00035,2]
[311104401,1704906646301,-198.72379147,0.00035,2]
[311104403,1704906646310,-198.72379147,0.00035,2]
[311104405,1704906646319,-151.0,0.00035,7]
[311104407,1704906646328,-151.0,0.00035,7]
[311104409,1704906646337,-151.0,0.00035,7]
[311104411,1704906646347,-151.0,0.00035,7]
[311104414,1704906646357,-164.0,0.00035,2]
[311104415,1704906646367,-164.0,0.00035,2]
[311104418,1704906646377,-164.0,0.00035,2]
[311104420,1704906646386,-203.530211,0.00035,7]
[311104421,1704906646396,-164.0,0.00035,2]
[311104423,1704906646406,-203.530211,0.00035,7]
[311104426,1704906646415,-151.0,0.00035,7]
[311104428,1704906646424,-279.797734,0.00035,7]
[311104430,1704906646433,-151.0,0.00035,7]
[311104432,1704906646442,-151.0,0.00035,7]
[311104434,1704906646451,-13612.87220954,0.00035,2]
[311104436,1704906646461,-13612.87220954,0.00035,2]
[311104438,1704906646471,-13612.87220954,0.00035,2]
[311104440,1704906646480,-151.0,0.00035,7]
[311104442,1704906646489,-151.0,0.00035,7]
[311104444,1704906646498,-678.510908,0.00035,7]
[311104446,1704906646507,-678.510908,0.00035,7]
[311104448,1704906646517,-151.0,0.00035,7]
[311104450,1704906646527,-151.0,0.00035,7]
[311104452,1704906646536,-198.59211134,0.00035,2]
[311104454,1704906646545,-198.59211134,0.00035,2]
[311104456,1704906646554,-198.59211134,0.00035,2]
[311104458,1704906646564,-198.59211134,0.00035,2]
[311104460,1704906646573,-198.59211134,0.00035,2]
[311104462,1704906646582,-198.59211134,0.00035,2]
[311104464,1704906646592,-198.59211134,0.00035,2]
[311104466,1704906646601,-198.59211134,0.00035,2]
[311104468,1704906646611,-198.59211134,0.00035,2]
[311104470,1704906646620,-198.59211134,0.00035,2]
[311104472,1704906646630,-198.59211134,0.00035,2]
[311104474,1704906646639,-198.59211134,0.00035,2]
[311104476,1704906646650,-198.59211134,0.00035,2]
[311104478,1704906646661,-198.59211134,0.00035,2]
[311104480,1704906646670,-198.59211134,0.00035,2]
[311104482,1704906646679,-198.59211134,0.00035,2]
[311104484,1704906646688,-198.59211134,0.00035,2]
[311104486,1704906646697,-198.59211134,0.00035,2]
[311104488,1704906646706,-198.59211134,0.00035,2]
[311104490,1704906646715,-198.59211134,0.00035,2]
[311104492,1704906646725,-198.59211134,0.00035,2]
[311104494,1704906646734,-198.59211134,0.00035,2]
[311104496,1704906646743,-198.59211134,0.00035,2]
[311104498,1704906646752,-198.59211134,0.00035,2]
[311104500,1704906646761,-198.59211134,0.00035,2]
[311104502,1704906646770,-198.59211134,0.00035,2]
[311104504,1704906646779,-198.59211134,0.00035,2]
[311104506,1704906646788,-198.59211134,0.00035,2]
[311104508,1704906646797,-198.59211134,0.00035,2]
[311104510,1704906646806,-198.59211134,0.00035,2]
[311104512,1704906646815,-198.59211134,0.00035,2]
[311104514,1704906646825,-198.59211134,0.00035,2]
[311104516,1704906646835,-198.59211134,0.00035,2]
[311104518,1704906646844,-198.59211134,0.00035,2]
[311104520,1704906646853,-198.59211134,0.00035,2]
[311104523,1704906646863,-198.59211134,0.00035,2]
[311104525,1704906646872,-198.59211134,0.00035,2]
[311104526,1704906646881,-198.59211134,0.00035,2]
[311104528,1704906646890,-198.59211134,0.00035,2]
[311104530,1704906646900,-198.59211134,0.00035,2]
[311104532,1704906646909,-198.59211134,0.00035,2]
[311104534,1704906646919,-198.59211134,0.00035,2]
[311104536,1704906646928,-198.59211134,0.00035,2]
[311104538,1704906646937,-198.59211134,0.00035,2]
[311104540,1704906646946,-198.59211134,0.00035,2]
[311104543,1704906646955,-198.59211134,0.00035,2]
[311104545,1704906646965,-198.59211134,0.00035,2]
[311104546,1704906646975,-198.59211134,0.00035,2]
[311104549,1704906646985,-198.59211134,0.00035,2]
[311104550,1704906646995,-198.59211134,0.00035,2]
[311104552,1704906647005,-198.59211134,0.00035,2]
[311104554,1704906647015,-198.59211134,0.00035,2]
[311104557,1704906647025,-198.59211134,0.00035,2]
[311104558,1704906647035,-198.59211134,0.00035,2]
[311104560,1704906647044,-198.59211134,0.00035,2]
[311104562,1704906647054,-198.59211134,0.00035,2]
[311104564,1704906647063,-198.59211134,0.00035,2]
[311104566,1704906647073,-198.59211134,0.00035,2]
[311104568,1704906647083,-198.59211134,0.00035,2]
[311104570,1704906647092,-198.59211134,0.00035,2]
[311104572,1704906647102,-198.59211134,0.00035,2]
[311104574,1704906647111,-198.59211134,0.00035,2]
[311104576,1704906647120,-198.59211134,0.00035,2]
[311104578,1704906647130,-198.59211134,0.00035,2]
[311104580,1704906647139,-198.59211134,0.00035,2]
[311104582,1704906647151,-198.59211134,0.00035,2]
[311104584,1704906647160,-198.59211134,0.00035,2]
[311104586,1704906647169,-198.59211134,0.00035,2]
[311104588,1704906647178,-198.59211134,0.00035,2]
[311104590,1704906647187,-198.59211134,0.00035,2]
[311104592,1704906647196,-198.59211134,0.00035,2]
[311104594,1704906647205,-198.59211134,0.00035,2]
[311104596,1704906647214,-198.59211134,0.00035,2]
[311104598,1704906647224,-198.59211134,0.00035,2]
[311104600,1704906647233,-198.59211134,0.00035,2]
[311104602,1704906647242,-198.59211134,0.00035,2]
[311104604,1704906647251,-200.0,0.00035,5]
[311104606,1704906647260,-198.59211134,0.00035,2]
[311104608,1704906647270,-198.59211134,0.00035,2]
[311104611,1704906647279,-198.59211134,0.00035,2]
[311104612,1704906647289,-198.59211134,0.00035,2]
[311104615,1704906647300,-198.59211134,0.00035,2]
[311104617,1704906647309,-198.59211134,0.00035,2]
[311104619,1704906647318,-198.59211134,0.00035,2]
[311104620,1704906647328,-198.59211134,0.00035,2]
[311104622,1704906647337,-198.59211134,0.00035,2]
[311104625,1704906647348,-198.59211134,0.00035,2]
[311104627,1704906647357,-198.59211134,0.00035,2]
[311104629,1704906647367,-198.59211134,0.00035,2]
[311104631,1704906647376,-198.59211134,0.00035,2]
[311104633,1704906647385,-198.59211134,0.00035,2]
[311104635,1704906647395,-198.59211134,0.00035,2]
[311104637,1704906647404,-198.59211134,0.00035,2]
[311104639,1704906647413,-198.59211134,0.00035,2]
[311104641,1704906647423,-198.59211134,0.00035,2]
[311104643,1704906647432,-198.59211134,0.00035,2]
[311104645,1704906647441,-198.59211134,0.00035,2]
[311104647,1704906647450,-168.904772,0.00035,7]
[311104649,1704906647459,-198.59211134,0.00035,2]
[311104651,1704906647468,-198.59211134,0.00035,2]
[311104653,1704906647476,-198.59211134,0.00035,2]
[311104655,1704906647485,-198.59211134,0.00035,2]
[311104657,1704906647494,-168.904772,0.00035,7]
[311104659,1704906647504,-1145.77037568,0.00035,2]
[311104661,1704906647513,-3000.0,0.0003501,2]
[311104663,1704906647522,-3000.0,0.0003502,2]
[311104665,1704906647531,-3000.0,0.0003503,2]
[311104667,1704906647539,-5192.235475,0.0003504,2]
[311104669,1704906647548,-18742.931281,0.00035068,2]
[311104671,1704906647558,-6702.325956,0.00035068,2]
[311104673,1704906647567,-14057.198461,0.00035068,2]
[311104675,1704906647576,-153.84162083,0.00035166,2]
[311104677,1704906647585,-1000.0,0.000352,2]
[311104679,1704906647594,-2000.0,0.000352,2]
[311104681,1704906647603,-1087.247275,0.000353,2]
[311104683,1704906647612,-150.1,0.00035318,2]
[311104685,1704906647621,-1181.24,0.00035332,10]
[311104687,1704906647632,-1345.54,0.00035332,10]
[311104689,1704906647641,-1121.29,0.00035332,10]
[311104691,1704906647651,-934.41,0.00035332,10]
[311104693,1704906647660,-778.67,0.00035332,10]
[311104695,1704906647669,-500.0,0.00035342,2]
[311104697,1704906647678,-500.0,0.00035342,2]
[311104699,1704906647687,-500.0,0.00035342,2]
[311104701,1704906647696,-500.0,0.00035342,2]
[311104703,1704906647705,-500.0,0.00035342,2]
[311104705,1704906647715,-500.0,0.00035342,2]
[311104707,1704906647724,-500.0,0.00035342,2]
[311104709,1704906647733,-500.0,0.00035342,2]
[311104711,1704906647742,-500.0,0.00035342,2]
[311104713,1704906647751,-500.0,0.00035342,2]
[311104715,1704906647761,-500.0,0.00035342,2]
[311104717,1704906647770,-500.0,0.00035342,2]
[311104719,1704906647779,-500.0,0.00035342,2]
[311104721,1704906647788,-500.0,0.00035342,2]
[311104722,1704906647797,-500.0,0.00035342,2]